Cogmind - Beta 11.1 @@@ ROGUE MODE // 2022.07.15 @ 16:58:52 Player: maxwell Result: Destroyed by P-80 Master with Gamma Rifle Performance ------------- Evolutions (7) 3500 Regions Visited (22) 4400 Robots Destroyed (177) 885 Value Destroyed (13318) 13318 Prototype IDs (31) 620 Alien Tech Used (1) 200 Bonus (11610) 11610 TOTAL SCORE: 34533 Bonus ------- Triggered Max Security 1000 High Alert Combat Kills 964 Follower Combat Kills 5204 Entered Garrisons 1600 Used RIF Installer 4000 Aligned with FarCom 300 Friendly Fire -1458 Cogmind --------- Core Integrity 0/1300 Matter 66/300 Energy 100/100 System Corruption 6% Temperature Cool (0) Movement Core (50) Location -3/Quarantine Parts ------- > --- POWER (2) -------- (None) > --- PROPULSION (2) --- (None) > --- UTILITY (13) ----- (None) > --- WEAPON (4) ------- (None) > --- INVENTORY (5) ---- Armored Wheel Advanced Power Amplifier Quantum Capacitor Hypervelocity Railgun Peak State ------------ > --- POWER ------------ Light Antimatter Reactor Particle Reactor > --- PROPULSION ------- Armored Wheel Armored Wheel > --- UTILITY ---------- Huge Storage Unit Advanced Salvage Targeting Computer Experimental Targeting Computer Improved Phase Shifter Layered Light Armor Plating Graphene Brace Experimental Focal Shield Relay Coupler [NC] Relay Coupler [Grunt] Relay Coupler [Brawler] Relay Coupler [Sentry] Relay Coupler [Demolisher] Relay Coupler [Hunter] > --- WEAPON ----------- Hypervelocity Railgun Hypervelocity Railgun Hypervelocity Railgun Advanced Remote Datajack > --- INVENTORY -------- Armored Wheel Armored Wheel Armored Wheel Medium Storage Unit Improved Transmission Jammer Relay Coupler [Cutter] Relay Coupler [Grunt] Relay Coupler [Grunt] Relay Coupler [Brawler] Improved System Restoration Module Compact HERF Cannon Compact HERF Cannon Compact HERF Cannon Hypervelocity Railgun Hypervelocity Railgun Hypervelocity Railgun Hypervelocity Railgun Hypervelocity Railgun Hypervelocity Railgun Improved Datajack Advanced Remote Datajack Advanced Remote Datajack Advanced Remote Datajack [Rating: 124] Favorites ----------- Power Light Antimatter Reactor Engine Light Deuterium Engine Power Core Reinforced Fission Core Reactor Light Antimatter Reactor Propulsion Armored Huge Wheel Treads Light Treads Leg Aluminum Leg Wheel Armored Huge Wheel Utility Huge Storage Unit Device Phase Shifter Storage Huge Storage Unit Processor Advanced Targeting Computer Hackware Relay Coupler [Sentry] Protection Layered Light Armor Plating Artifact Phase Redirector Weapon Hypervelocity Gauss Rifle Energy Gun Particle Gun Energy Cannon Heavy Plasma Cannon Ballistic Gun Hypervelocity Gauss Rifle Ballistic Cannon AWS/Autocannon Special Weapon Improved Remote Datajack Impact Weapon Mace Special Melee Weapon Improved Datajack Build | -11 -10 -10 -10 -9 -8 -8 -7 -7 -6 -6 -6 -6 -5 -5 -4 -4 -4 -4 -3 -3 -3 -3 ------- Run | Scr Mat Min Exi Min Mat Gar Fac Gar Fac Gar Fac Gar Fac Gar Fac Gar Fac Gar Res Gar Res Qua Slots Evolved 14 | . . . . . 4 . 2 . 2 . . . 2 . 2 . . . 2 . . . Power 1 | . . . . . . . . . . . . . . . . . . . 1 . . . Propulsion . | . . . . . . . . . . . . . . . . . . . . . . . Utility 11 | . . . . . 2 . 2 . 2 . . . 2 . 2 . . . 1 . . . Weapon 2 | . . . . . 2 . . . . . . . . . . . . . . . . . Parts Attached 253 | 6 5 3 2 8 7 12 13 11 5 16 9 22 11 24 4 17 . 9 16 30 22 1 Power 18 | 1 . 1 . . 1 . 2 . 1 1 . 1 1 . 1 . . 1 2 3 2 . Engine 4 | 1 . . . . 1 . 1 . 1 . . . . . . . . . . . . . Core 6 | . . 1 . . . . 1 . . . . 1 1 . . . . . 1 1 . . Reactor 8 | . . . . . . . . . . 1 . . . . 1 . . 1 1 2 2 . Propulsion 21 | 2 2 1 . 2 2 1 1 . 1 . 1 . . 1 . . . . 1 4 2 . Treads 8 | 2 2 1 . . 1 . . . . . . . . . . . . . . 2 . . Leg 1 | . . . . 1 . . . . . . . . . . . . . . . . . . Wheel 12 | . . . . 1 1 1 1 . 1 . 1 . . 1 . . . . 1 2 2 . Hover . | . . . . . . . . . . . . . . . . . . . . . . . Flight . | . . . . . . . . . . . . . . . . . . . . . . . Utility 143 | 1 1 1 2 1 3 4 6 4 3 12 4 14 6 20 1 13 . 8 8 15 15 1 Device 43 | . . . 1 1 1 2 1 1 1 3 . 1 3 8 1 4 . 1 5 4 5 . Storage 6 | 1 1 . 1 . . 1 . . . . . . . . . . . 1 . 1 . . Processor 7 | . . . . . 1 . . . . . . . . . . . . . . . 6 . Hackware 77 | . . . . . . 1 3 3 2 8 4 13 3 12 . 9 . 6 3 9 1 . Protection 9 | . . 1 . . 1 . 2 . . 1 . . . . . . . . . 1 3 . Artifact 1 | . . . . . . . . . . . . . . . . . . . . . . 1 Weapon 71 | 2 2 . . 5 1 7 4 7 . 3 4 7 4 3 2 4 . . 5 8 3 . Energy Gun 14 | 1 1 . . 2 . 2 2 3 . 1 1 . . . . 1 . . . . . . Energy Cannon 7 | . . . . . . . . . . . 1 1 . . 1 1 . . 1 . 2 . Ballistic Gun 30 | 1 1 . . 3 . 3 1 1 . 1 1 3 4 1 . 2 . . 1 7 . . Ballistic Cannon 4 | . . . . . 1 1 . . . . . . . . . . . . 2 . . . Launcher . | . . . . . . . . . . . . . . . . . . . . . . . Special Weapon 8 | . . . . . . . . 1 . 1 . 2 . 1 1 . . . 1 . 1 . Impact Weapon 1 | . . . . . . . . 1 . . . . . . . . . . . . . . Slashing Weapon . | . . . . . . . . . . . . . . . . . . . . . . . Piercing Weapon . | . . . . . . . . . . . . . . . . . . . . . . . Special Melee Weapon 7 | . . . . . . 1 1 1 . . 1 1 . 1 . . . . . 1 . . Unidentified Prototypes 7 | . . . 1 . . . 1 . . . . . . . . . . . . . 4 1 Corrupted Parts 4 | . . . . 4 . . . . . . . . . . . . . . . . . . System Corruption 12 | . . . . 12 . . . . . . . . . . . . . . . . . . Parts Lost 70 | . 1 1 . 2 2 1 1 1 . 7 2 3 . 3 . 2 . . 8 22 14 . Power 7 | . 1 . . . . . . . . . . 2 . . . . . . 1 1 2 . Propulsion 10 | . . 1 . 2 1 1 . . . . . . . . . . . . 1 2 2 . Utility 33 | . . . . . 1 . 1 . . 4 1 1 . 2 . . . . 3 14 6 . Weapon 20 | . . . . . . . . 1 . 3 1 . . 1 . 2 . . 3 5 4 . Highest Loss Streak 20 | . 1 1 . 2 2 1 1 1 . 2 2 1 . 2 . 1 . . 3 20 12 . To Critical Strikes . | . . . . . . . . . . . . . . . . . . . . . . . Average Slot Usage (%) 81 | . 78 80 77 93 75 80 69 77 80 79 74 79 81 91 86 91 94 90 84 65 94 71 Engine 1 | . 7 . . . 6 9 3 . 2 2 . . . . . . . . . . . . Core 2 | . . 4 14 14 2 . 3 7 3 . . 2 3 5 2 . . . 2 2 2 . Reactor 2 | . . . . . . . . . . 3 6 . . . 2 5 5 5 4 2 5 3 Treads 2 | . 27 28 28 . 4 . . . . . . . . . . . . . . 1 . . Wheel 5 | . . . . 12 9 16 7 7 6 6 6 6 5 5 5 5 5 5 4 2 8 8 Device 7 | . . . 11 10 14 6 5 6 7 12 7 6 7 6 13 10 10 6 7 5 12 4 Storage 6 | . 14 14 14 14 9 9 7 7 6 6 6 6 5 5 5 5 5 5 4 3 4 3 Processor 1 | . . . . . 2 9 5 . . . . . . . . . . . . . 6 3 Hackware 27 | . . . . . . 2 9 18 25 17 14 28 35 43 36 43 47 47 43 29 27 21 Protection 2 | . . 4 2 . 6 9 6 . . 3 6 1 . . . . . . . 1 4 13 Energy Gun 2 | . 7 . . . . 1 1 11 20 15 5 1 . . . 4 . . . . . . Energy Cannon 1 | . . . . . . . . . . . . 2 2 . 2 . 5 5 3 1 . 3 Ballistic Gun 10 | . 19 28 6 28 9 9 3 3 . 3 7 15 14 17 12 10 10 10 5 4 13 . Ballistic Cannon 1 | . . . . . 9 7 5 . . . . . . . . . . . . . . . Special Weapon 3 | . . . . . . . . 4 6 5 6 5 5 4 3 5 5 5 5 2 2 . Naked Turns 204 | . . . . . . . . . . . . . . . . . . . . 190 . 14 Heaviest Build 176 | 11 26 32 52 52 120 160 176 115 106 129 132 132 120 120 124 138 138 138 161 150 151 153 Greatest Support 56 | 40 40 40 40 16 26 28 28 28 28 28 28 28 28 28 28 28 28 28 28 56 44 24 Greatest Overweight (x) 27 | . . . 1 3 7 9 6 4 3 4 4 4 4 4 4 4 4 4 5 27 11 6 Average Overweight (x) 3 | . . . . 2 6 5 5 3 3 3 4 3 3 3 4 4 4 4 4 4 4 4 Largest Inventory Capacity 25 | 8 15 15 20 20 20 25 25 25 25 25 25 25 25 25 25 25 25 25 25 25 25 25 Average Capacity 23 | 7 12 15 19 20 20 24 25 25 25 25 25 25 25 25 25 25 25 25 25 23 25 23 Most Carried 25 | 1 6 15 16 15 17 25 25 25 25 25 25 25 25 25 25 25 25 25 25 25 23 24 Average Carried 20 | . 4 11 14 14 12 18 23 23 22 23 24 23 23 24 24 24 25 22 22 14 19 22 Final Capacity 25 | 8 15 15 20 20 20 25 25 25 25 25 25 25 25 25 25 25 25 25 25 25 25 5 Final Carried 25 | 1 5 15 16 14 17 25 21 25 22 25 25 24 25 25 25 25 25 25 22 13 23 5 Class Distribution -------------------- 38% | Botlord-Mutant 14% | Botlord-Skirmisher 10% | Bothacker-Mutant 7% | Bothacker-Skirmisher 7% | Mutant 7% | Botlord-Tank 4% | Commander-Mutant 4% | Bothacker-Tank 3% | Skirmisher Dominant Class ---------------- Mutant | -10/Materials Mutant | -10/Mines Mutant | -10/Exiles Skirmisher | -9/Mines Skirmisher | -8/Materials Tank | -8/Garrison Bothacker-Tank | -7/Factory Bothacker-Mutant | -7/Garrison Bothacker-Mutant | -6/Factory Bothacker-Skirmisher | -6/Garrison Bothacker-Mutant | -6/Factory Botlord-Mutant | -6/Garrison Botlord-Skirmisher | -5/Factory Botlord-Skirmisher | -5/Garrison Botlord-Mutant | -4/Factory Botlord-Mutant | -4/Garrison Botlord-Tank | -4/Factory Botlord-Mutant | -4/Garrison Botlord-Mutant | -3/Research Botlord-Mutant | -3/Garrison Botlord-Tank | -3/Research Botlord-Mutant | -3/Quarantine Resources | -11 -10 -10 -10 -9 -8 -8 -7 -7 -6 -6 -6 -6 -5 -5 -4 -4 -4 -4 -3 -3 -3 -3 ----------- Run | Scr Mat Min Exi Min Mat Gar Fac Gar Fac Gar Fac Gar Fac Gar Fac Gar Fac Gar Res Gar Res Qua Matter Collected 8628 | 260 202 215 . 92 164 593 219 182 125 353 61 647 323 1383 408 866 . 526 392 725 892 . Remotely 164 | . . . . . 164 . . . . . . . . . . . . . . . . . Salvage Created 8578 | . 236 285 . 94 697 1286 626 309 46 530 109 131 200 764 239 397 . 428 51 995 1155 . Parts 407 | . 12 15 . 4 38 48 22 12 2 22 9 4 5 43 9 29 . 15 3 26 89 . Haulers Intercepted 2 | . 1 . . . 1 . . . . . . . . . . . . . . . . . Recyclers Shooed 8 | . . 1 . . . . . . . . . . . . 1 . . . . . 6 . Parts Field Recycled . | . . . . . . . . . . . . . . . . . . . . . . . Retrieved Matter . | . . . . . . . . . . . . . . . . . . . . . . . Parts Self-Destructed . | . . . . . . . . . . . . . . . . . . . . . . . Prevented . | . . . . . . . . . . . . . . . . . . . . . . . Kills | -11 -10 -10 -10 -9 -8 -8 -7 -7 -6 -6 -6 -6 -5 -5 -4 -4 -4 -4 -3 -3 -3 -3 ------- Run | Scr Mat Min Exi Min Mat Gar Fac Gar Fac Gar Fac Gar Fac Gar Fac Gar Fac Gar Res Gar Res Qua Combat Hostiles Destroyed 146 | . 5 10 . 2 14 31 13 7 1 5 1 3 3 12 3 7 . 6 1 11 11 . Melee 1 | . . . . . . . . 1 . . . . . . . . . . . . . . Guns 82 | . 5 10 . 2 1 2 5 6 1 5 1 1 3 12 3 5 . 6 . 3 11 . Cannons 60 | . . . . . 13 29 8 . . . . 2 . . . 2 . . 1 5 . . Classes Destroyed 16 | . 4 . . . 6 1 1 . . . 2 . . . . 1 . . . 1 . . Worker 2 | . . . . . . . . . . . 1 . . . . . . . . . 1 . Builder 6 | . . . . . 4 . . . . . 1 . . . . . . . . . 1 . Tunneler 1 | . . . . . . . . . . . 1 . . . . . . . . . . . Hauler 2 | . 1 . . . 1 . . . . . . . . . . . . . . . . . Recycler 2 | . 1 . . . 1 . . . . . . . . . . . . . . . . . Operator 3 | . . . . . 3 . . . . . . . . . . . . . . . . . Watcher 9 | . . . . . 4 . 3 . . . . . . . . . . . . . 2 . Swarmer 29 | . 3 6 . . . 4 . . . 1 . 1 . 5 1 5 . 1 . 2 . . Saboteur 2 | . . . . . . . . . . . . . . . . 2 . . . . . . Grunt 79 | . 2 4 . 2 10 23 5 7 . 4 . 1 2 6 1 2 . 3 . 6 1 . Brawler 5 | . . . . . 1 1 3 . . . . . . . . . . . . . . . Duelist 3 | . . . . . . 1 2 . . . . . . . . . . . . . . . Sentry 10 | . . . . . 2 2 1 . . . . . . . . . . 2 . . 3 . Demolisher 1 | . . . . . . . . . . . . . . . . . . . . 1 . . Hunter 12 | . . . . . 1 . . . . 1 1 1 . 2 . . . . 1 2 3 . Programmer 13 | . . . . . . . 2 . 1 . . . 1 1 2 1 . . . . 5 . Best Kill Streak 7 | . 3 3 . 2 7 7 3 4 1 4 4 1 3 4 1 2 . 3 1 2 3 . Combat Bots Only 7 | . 3 3 . 2 4 7 3 4 1 4 1 1 3 4 1 2 . 3 1 2 2 . Max Kills in Single Turn 2 | . 1 1 . 1 2 1 1 2 1 2 1 1 1 1 1 1 . 2 1 1 2 . Gunslinging 1 | . . . . . . . . 1 . 1 . . . . . . . 1 . . . . Exploded . | . . . . . . . . . . . . . . . . . . . . . . . Melee 1 | . . . . . . . . 1 . . . . . . . . . . . . . . Uniques/NPCs Destroyed . | . . . . . . . . . . . . . . . . . . . . . . . Combat | -11 -10 -10 -10 -9 -8 -8 -7 -7 -6 -6 -6 -6 -5 -5 -4 -4 -4 -4 -3 -3 -3 -3 -------- Run | Scr Mat Min Exi Min Mat Gar Fac Gar Fac Gar Fac Gar Fac Gar Fac Gar Fac Gar Res Gar Res Qua Damage Taken 10645 | . 212 465 . 155 432 349 578 418 122 541 438 398 197 633 201 522 . 375 704 1944 1755 206 Core 2081 | . 72 131 . 16 29 21 55 76 33 49 . 12 64 58 45 30 . 87 34 800 350 119 Absorbed by Shields 915 | . . . . . . 112 35 171 47 8 . . . 25 . . . 116 91 229 81 . Core Remaining (%) 77 | 100 . . . 12 . 90 . 81 . . . 88 . 87 . . . 85 . . . . Volleys Fired 867 | . 24 30 . 7 20 95 18 22 16 61 21 59 24 83 31 104 . 62 32 99 58 1 Largest 4 | . 2 2 . 2 1 4 3 3 3 3 3 3 3 3 3 3 . 3 2 4 3 1 Hottest 195 | . 70 40 . 40 25 131 151 195 195 195 125 182 145 99 114 147 . 156 132 160 120 94 Shots Fired 1598 | . 48 60 . 13 83 228 64 42 18 104 29 79 48 189 58 157 . 71 39 118 149 1 Gun 1087 | . 48 60 . 13 20 165 32 38 3 70 12 32 34 166 47 108 . 30 6 65 138 . Cannon 242 | . . . . . 63 63 32 . . . . 11 2 . 2 11 . 8 8 37 4 1 Launcher . | . . . . . . . . . . . . . . . . . . . . . . . Special 269 | . . . . . . . . 4 15 34 17 36 12 23 9 38 . 33 25 16 7 . Kinetic 1069 | . 25 60 . 13 83 206 50 2 . 14 8 29 34 166 47 85 . 30 14 65 138 . Thermal 182 | . 23 . . . . 22 14 36 3 56 4 14 2 . . . . 8 . . . . Explosive . | . . . . . . . . . . . . . . . . . . . . . . . Electromagnetic 78 | . . . . . . . . . . . . . . . 2 34 . . . 37 4 1 Robot Hit Streak 64 | . 10 10 . 10 26 64 24 14 13 33 9 7 7 15 12 10 . 9 12 12 13 . Robot Miss Streak 6 | . 2 3 . 1 2 1 1 1 4 5 1 3 3 6 5 4 . 3 3 4 5 . Penetration Max 1 | . . . . . . . . . . . 1 . 1 1 1 . . . . . 1 . Secondary Targets 13 | . 1 3 . 1 . . 1 1 . 2 . . . 2 . . . 1 . . 1 . Max Gunslinging Chain 2 | . 1 1 . 1 . . 1 1 . 2 . . . 1 . . . 1 . . 1 . Autonomous 159 | . . . . . 63 63 33 . . . . . . . . . . . . . . . Shots Hit Robots 1054 | . 32 40 . 12 74 196 72 32 12 69 22 35 30 88 37 61 . 47 27 75 93 . Core Hits 343 | . 14 17 . 6 23 65 21 13 2 23 4 6 9 32 11 19 . 10 2 21 45 . Critical Kills 47 | . . . . . . . . . . 1 . . 2 12 3 5 . 4 1 5 14 . Critical Parts Destroyed 66 | . . . . . . . . . . . . 1 6 16 6 6 . 1 2 10 18 . Critical Strikes 137 | . 1 . . . 4 7 4 . . 3 . 1 8 28 9 12 . 5 3 17 35 . Burn 8 | . 1 . . . . 3 2 . . 2 . . . . . . . . . . . . Destroy 116 | . . . . . . . . . . 1 . 1 8 28 9 11 . 5 3 15 35 . Blast 10 | . . . . . 4 4 2 . . . . . . . . . . . . . . . Corrupt 3 | . . . . . . . . . . . . . . . . 1 . . . 2 . . Melee Attacks 46 | . . . . . . 3 18 18 . . . . . . . . . . . 3 4 . Impact 6 | . . . . . . . . 6 . . . . . . . . . . . . . . Slashing . | . . . . . . . . . . . . . . . . . . . . . . . Piercing . | . . . . . . . . . . . . . . . . . . . . . . . Sneak Attacks 14 | . . . . . . 1 6 2 . . . . . . . . . . . 1 4 . Combat Hostiles 1 | . . . . . . . . 1 . . . . . . . . . . . . . . Follow-up Attacks . | . . . . . . . . . . . . . . . . . . . . . . . Damage Inflicted 18486 | . 342 446 . 117 3705 5523 2824 434 59 743 133 343 220 472 280 400 . 283 64 1182 916 . Guns 6739 | . 342 446 . 117 278 1240 468 368 59 743 133 222 188 472 221 291 . 90 13 230 818 . Cannons 11660 | . . . . . 3427 4283 2355 . . . . 121 32 . 59 109 . 193 47 936 98 . Explosions . | . . . . . . . . . . . . . . . . . . . . . . . Melee 66 | . . . . . . . . 66 . . . . . . . . . . . . . . Ramming 21 | . . . . . . . 1 . . . . . . . . . . . 4 16 . . Kinetic 14971 | . 132 446 . 117 3705 5241 2607 32 . 152 74 204 188 472 221 182 . 90 60 230 818 . Thermal 2117 | . 210 . . . . 282 216 336 59 591 59 139 32 . . . . 193 . . . . Explosive . | . . . . . . . . . . . . . . . . . . . . . . . Electromagnetic 1311 | . . . . . . . . . . . . . . . 59 218 . . . 936 98 . Impact 66 | . . . . . . . . 66 . . . . . . . . . . . . . . Slashing . | . . . . . . . . . . . . . . . . . . . . . . . Piercing . | . . . . . . . . . . . . . . . . . . . . . . . Highest Corruption 13 | . . 1 1 13 . . 4 4 . . . . . 1 2 2 . . . . 6 6 Average Corruption 2 | . . 1 1 1 . . 3 4 . . . . . 1 1 1 . . . . 4 6 Corruption Purged 3 | . . . . . . . . . . . . . . 1 . 2 . . . . . . Corruption Blocked . | . . . . . . . . . . . . . . . . . . . . . . . Effects 113 | . . 1 5 2 . . 18 25 . . . . . . 1 29 . . . . 25 7 Message Errors 18 | . . . 1 . . . 3 6 . . . . . . . 2 . . . . 6 . Matter Fused 28 | . . . 2 . . . 2 6 . . . . . . . 10 . . . . 5 3 Heat Flow Errors 22 | . . . . . . . 6 3 . . . . . . . 5 . . . . 6 2 Energy Discharges 20 | . . . . 1 . . 4 4 . . . . . . 1 5 . . . . 5 . Parts Rejected 1 | . . . . . . . . 1 . . . . . . . . . . . . . . Data Loss (minor) 12 | . . 1 1 . . . 1 1 . . . . . . . 6 . . . . 2 . Data Loss (major) 6 | . . . 1 . . . 1 2 . . . . . . . . . . . . . 2 Misfires 3 | . . . . . . . 1 2 . . . . . . . . . . . . . . Weapon Failures 3 | . . . . 1 . . . . . . . . . . . 1 . . . . 1 . Overload Shots . | . . . . . . . . . . . . . . . . . . . . . . . Overflow Damage 1562 | . . . . . 640 366 509 26 . . . . 9 . . . . 10 . . 2 . Projectiles 1536 | . . . . . 640 366 509 . . . . . 9 . . . . 10 . . 2 . Explosions . | . . . . . . . . . . . . . . . . . . . . . . . Melee 26 | . . . . . . . . 26 . . . . . . . . . . . . . . Knockbacks 30 | . . . . . 11 16 3 . . . . . . . . . . . . . . . Impact . | . . . . . . . . . . . . . . . . . . . . . . . Kinetic 25 | . . . . . 8 14 3 . . . . . . . . . . . . . . . Secondary 5 | . . . . . 3 2 . . . . . . . . . . . . . . . . Self-Inflicted Damage 10 | . . . . . . . . . . . . . . . . . . . 2 8 . . Shots . | . . . . . . . . . . . . . . . . . . . . . . . Rammed 7 | . . 1 . . . . 1 . . . . . . . . . . . 1 4 . . Targets Rammed 7 | . . 1 . . . . 1 . . . . . . . . . . . 1 4 . . Kicked . | . . . . . . . . . . . . . . . . . . . . . . . Crushed . | . . . . . . . . . . . . . . . . . . . . . . . Highest Temperature 438 | . 174 22 . 17 31 364 438 337 102 386 36 129 24 18 24 260 . 66 60 303 420 234 Average Temperature 83 | . 68 6 . 9 8 70 140 98 54 109 17 39 8 4 14 57 . 28 31 107 121 137 Received Heat Transfer 2100 | . 99 183 . 87 108 170 226 225 . 123 18 132 18 81 . 30 . 90 49 116 324 21 Effects 5 | . . . . . . 1 2 . . . . . . . . . . . . . 2 . Shutdowns 3 | . . . . . . 1 1 . . . . . . . . . . . . . 1 . Energy Bleed 1 | . . . . . . . . . . . . . . . . . . . . . 1 . Short Circuit 1 | . . . . . . . 1 . . . . . . . . . . . . . . . Siege Activations . | . . . . . . . . . . . . . . . . . . . . . . . Robots Corrupted 3 | . . . . . . . . . . . . . . . . . . . . 3 . . Combat Hostiles 3 | . . . . . . . . . . . . . . . . . . . . 3 . . Parts Fried 11 | . . . . . . . . . . . . . . . . . . . . 11 . . Impact Corruptions 3 | . . . . . 2 . . 1 . . . . . . . . . . . . . . Robots Melted . | . . . . . . . . . . . . . . . . . . . . . . . Combat Hostiles . | . . . . . . . . . . . . . . . . . . . . . . . Parts Melted 12 | . 1 . . . . . 3 . 3 3 . . 2 . . . . . . . . . Heat Transferred 5165 | . 703 . . . . 851 610 777 111 1480 111 185 37 . . . . 300 . . . . Parts Sabotaged . | . . . . . . . . . . . . . . . . . . . . . . . Parts Stolen . | . . . . . . . . . . . . . . . . . . . . . . . Parts Stripped . | . . . . . . . . . . . . . . . . . . . . . . . Power Chain Reactions . | . . . . . . . . . . . . . . . . . . . . . . . Missiles Intercepted . | . . . . . . . . . . . . . . . . . . . . . . . Alert | -11 -10 -10 -10 -9 -8 -8 -7 -7 -6 -6 -6 -6 -5 -5 -4 -4 -4 -4 -3 -3 -3 -3 ------- Run | Scr Mat Min Exi Min Mat Gar Fac Gar Fac Gar Fac Gar Fac Gar Fac Gar Fac Gar Res Gar Res Qua Peak Influence 1615 | . 130 185 . 45 294 1322 870 634 383 577 424 856 443 554 345 361 189 278 171 790 459 1615 Initial 693 | . . 25 . . 17 176 693 451 332 149 302 296 428 21 290 77 189 132 156 76 444 . Average 393 | . 60 105 . 42 128 911 705 511 324 306 292 672 142 361 233 255 189 204 69 509 100 1600 Maximum Alert Level 5 | . . . . . 1 4 3 2 1 2 2 3 2 2 1 1 . 1 . 3 2 5 Low Security (%) 33 | 100 100 100 . 100 73 1 . . 3 39 9 . 84 19 39 32 100 63 100 12 88 . Level 1 24 | . . . . . 26 7 . . 96 37 84 6 . 23 60 67 . 36 . 18 . . Level 2 22 | . . . . . . 14 67 100 . 23 5 34 15 57 . . . . . 27 10 . Level 3 16 | . . . . . . 51 32 . . . . 59 . . . . . . . 41 . . Level 4 1 | . . . . . . 25 . . . . . . . . . . . . . . . . Level 5 . | . . . . . . . . . . . . . . . . . . . . . . . High Security . | . . . . . . . . . . . . . . . . . . . . . . . Max Security . | . . . . . . . . . . . . . . . . . . . . . . 99 Squads Dispatched 31 | . 1 . . . 2 . 5 . 1 . 2 . 3 . 1 . . . 8 . 2 6 Investigation 9 | . 1 . . . 2 . 1 . . . 1 . 1 . . . . . 3 . . . Extermination 7 | . . . . . . . 2 . 1 . . . 1 . 1 . . . 1 . 1 . Reinforcement 6 | . . . . . . . . . . . . . 1 . . . . . 4 . 1 . Assault 8 | . . . . . . . 2 . . . . . . . . . . . . . . 6 Garrison 1 | . . . . . . . . . . . 1 . . . . . . . . . . . Intercept . | . . . . . . . . . . . . . . . . . . . . . . . Searches Triggered . | . . . . . . . . . . . . . . . . . . . . . . . Construction Impeded 1 | . . . . . . . . . . . . . . . . . . . 1 . . . Haulers Reinforced . | . . . . . . . . . . . . . . . . . . . . . . . Active Scanning Responses . | . . . . . . . . . . . . . . . . . . . . . . . Cargo Convoy Interrupts . | . . . . . . . . . . . . . . . . . . . . . . . Alert ID Control Effect 106 | . . . . . . . . . . . . 13 4 5 10 6 . 9 43 9 7 . Stealth | -11 -10 -10 -10 -9 -8 -8 -7 -7 -6 -6 -6 -6 -5 -5 -4 -4 -4 -4 -3 -3 -3 -3 --------- Run | Scr Mat Min Exi Min Mat Gar Fac Gar Fac Gar Fac Gar Fac Gar Fac Gar Fac Gar Res Gar Res Qua Distress Signals 10 | . . 1 . . 1 . . . . . . . . . . . . 1 4 . 3 . Communications Jammed 1 | . . . . . . . . . . . . . . . . . . . . . 1 . Distress Signals 1 | . . . . . . . . . . . . . . . . . . . . . 1 . Times Spotted 418 | . 9 10 . 2 17 26 25 14 7 23 9 33 10 26 11 29 . 28 47 44 25 23 Peak Tracking Total 20 | . 2 3 . 2 6 3 5 4 4 4 2 5 3 8 5 7 . 6 9 6 2 20 Tactical Retreats 17 | . . . . . 2 2 1 . . . . . . 1 . 2 . 1 . 8 . . Traps | -11 -10 -10 -10 -9 -8 -8 -7 -7 -6 -6 -6 -6 -5 -5 -4 -4 -4 -4 -3 -3 -3 -3 ------- Run | Scr Mat Min Exi Min Mat Gar Fac Gar Fac Gar Fac Gar Fac Gar Fac Gar Fac Gar Res Gar Res Qua Traps Triggered 97 | . 1 . . . . 11 4 8 1 13 . 10 1 10 2 11 . 5 1 19 . . Indirectly . | . . . . . . . . . . . . . . . . . . . . . . . Trap Hack Attempts 125 | . . . . . . 7 34 . . . 7 24 . 53 . . . . . . . . Triggered . | . . . . . . . . . . . . . . . . . . . . . . . Disarmed 6 | . . . . . . . 4 . . . 1 1 . . . . . . . . . . Reprogrammed 5 | . . . . . . 1 . . . . . . . 4 . . . . . . . . Reused 1 | . . . . . . 1 . . . . . . . . . . . . . . . . Traps Extracted 4 | . . . . . . . . . . . . . . 4 . . . . . . . . Installed . | . . . . . . . . . . . . . . . . . . . . . . . Triggered 1 | . . . . . . 1 . . . . . . . . . . . . . . . . Most Traps Carried 1 | . . . . . . . . . . . . . . 1 1 1 . . . . . . Machines | -11 -10 -10 -10 -9 -8 -8 -7 -7 -6 -6 -6 -6 -5 -5 -4 -4 -4 -4 -3 -3 -3 -3 ---------- Run | Scr Mat Min Exi Min Mat Gar Fac Gar Fac Gar Fac Gar Fac Gar Fac Gar Fac Gar Res Gar Res Qua Machines Disabled 46 | . . . . . 3 5 . 2 . 4 4 4 4 6 1 4 . 2 2 4 . 1 Max in Single Turn 2 | . . . . . 2 1 . 1 . 1 . 1 . 2 . 1 . 1 . 1 . 1 Garrison Relay 28 | . . . . . . 4 . 2 . 4 . 4 . 4 . 4 . 2 . 4 . . Phase Generator 1 | . . . . . . . . . . . . . . 1 . . . . . . . . Machines Sabotaged . | . . . . . . . . . . . . . . . . . . . . . . . Garrisons Compromised . | . . . . . . . . . . . . . . . . . . . . . . . Overloaded Fab Kills . | . . . . . . . . . . . . . . . . . . . . . . . Hacking | -11 -10 -10 -10 -9 -8 -8 -7 -7 -6 -6 -6 -6 -5 -5 -4 -4 -4 -4 -3 -3 -3 -3 --------- Run | Scr Mat Min Exi Min Mat Gar Fac Gar Fac Gar Fac Gar Fac Gar Fac Gar Fac Gar Res Gar Res Qua Machines Accessed 25 | . 5 1 2 . 7 . 1 . 3 . 1 . 1 . 1 . 1 . 1 . 1 . Terminals 12 | . 5 . . . 5 . . . 1 . . . . . . . . . . . 1 . Fabricators . | . . . . . . . . . . . . . . . . . . . . . . . Repair Stations 1 | . . . . . . . . . 1 . . . . . . . . . . . . . Recycling Units . | . . . . . . . . . . . . . . . . . . . . . . . Scanalyzers 1 | . . . . . 1 . . . . . . . . . . . . . . . . . Garrison Access 8 | . . . . . 1 . 1 . 1 . 1 . 1 . 1 . 1 . 1 . . . Total Hacks 55 | . 14 1 2 . 16 . 2 . 7 . 2 . 3 . 2 . 2 . 2 . 2 . Successful 34 | . 9 1 2 . 8 . 1 . 4 . 2 . 2 . 1 . 1 . 2 . 1 . Failed 21 | . 5 . . . 8 . 1 . 3 . . . 1 . 1 . 1 . . . 1 . Catastrophic 4 | . 1 . . . . . 1 . 2 . . . . . . . . . . . . . Database Lockouts . | . . . . . . . . . . . . . . . . . . . . . . . Manual 38 | . 12 . 1 . 12 . 1 . 4 . 1 . 2 . 1 . 1 . 1 . 2 . Terminals 30 | . 14 . . . 11 . . . 3 . . . . . . . . . . . 2 . Fabricators . | . . . . . . . . . . . . . . . . . . . . . . . Repair Stations 2 | . . . . . . . . . 2 . . . . . . . . . . . . . Recycling Units . | . . . . . . . . . . . . . . . . . . . . . . . Scanalyzers 2 | . . . . . 2 . . . . . . . . . . . . . . . . . Garrison Access 18 | . . . . . 3 . 2 . 2 . 2 . 3 . 2 . 2 . 2 . . . Terminal Hacks 10 | . 5 1 2 . 1 . . . 1 . . . . . . . . . . . . . Record 1 | . . . 1 . . . . . . . . . . . . . . . . . . . Robot Analysis 4 | . 4 . . . . . . . . . . . . . . . . . . . . . Open Door 1 | . . 1 . . . . . . . . . . . . . . . . . . . . Terminal Index 3 | . 1 . . . 1 . . . 1 . . . . . . . . . . . . . EX-Prototype ID Bank 1 | . . . 1 . . . . . . . . . . . . . . . . . . . Fabricator Hacks . | . . . . . . . . . . . . . . . . . . . . . . . Repair Station Hacks 1 | . . . . . . . . . 1 . . . . . . . . . . . . . Scan Component 1 | . . . . . . . . . 1 . . . . . . . . . . . . . Recycling Unit Hacks . | . . . . . . . . . . . . . . . . . . . . . . . Scanalyzer 2 | . . . . . 2 . . . . . . . . . . . . . . . . . Insert Component 1 | . . . . . 1 . . . . . . . . . . . . . . . . . Analyze 1 | . . . . . 1 . . . . . . . . . . . . . . . . . Garrison Access Hacks 8 | . . . . . 1 . 1 . 1 . 1 . 1 . 1 . 1 . 1 . . . Unlock Access 8 | . . . . . 1 . 1 . 1 . 1 . 1 . 1 . 1 . 1 . . . Unauthorized Hacks 13 | . 4 . . . 4 . . . 1 . 1 . 1 . . . . . 1 . 1 . Terminals 9 | . 4 . . . 3 . . . 1 . . . . . . . . . . . 1 . Assimilate 3 | . 1 . . . 1 . . . . . . . . . . . . . . . 1 . Botnet 2 | . 2 . . . . . . . . . . . . . . . . . . . . . Operators 4 | . 1 . . . 2 . . . 1 . . . . . . . . . . . . . Fabricators . | . . . . . . . . . . . . . . . . . . . . . . . Repair Stations . | . . . . . . . . . . . . . . . . . . . . . . . Recycling Units . | . . . . . . . . . . . . . . . . . . . . . . . Scanalyzers . | . . . . . . . . . . . . . . . . . . . . . . . Garrison Access 4 | . . . . . 1 . . . . . 1 . 1 . . . . . 1 . . . Eject 4 | . . . . . 1 . . . . . 1 . 1 . . . . . 1 . . . Data Cores Recovered . | . . . . . . . . . . . . . . . . . . . . . . . Used . | . . . . . . . . . . . . . . . . . . . . . . . Hacking Detections 17 | . 5 . . . 5 . 1 . 3 . . . . . 1 . 1 . . . 1 . Full Trace Events 2 | . 1 . . . 1 . . . . . . . . . . . . . . . . . Feedback Events . | . . . . . . . . . . . . . . . . . . . . . . . Feedback Blocked . | . . . . . . . . . . . . . . . . . . . . . . . Robot Schematics Acquired . | . . . . . . . . . . . . . . . . . . . . . . . Robots Built . | . . . . . . . . . . . . . . . . . . . . . . . Authchips . | . . . . . . . . . . . . . . . . . . . . . . . Time . | . . . . . . . . . . . . . . . . . . . . . . . Total Robot Build Rating . | . . . . . . . . . . . . . . . . . . . . . . . Part Schematics Acquired 1 | . . . . . 1 . . . . . . . . . . . . . . . . . Parts Built . | . . . . . . . . . . . . . . . . . . . . . . . Authchips . | . . . . . . . . . . . . . . . . . . . . . . . Time . | . . . . . . . . . . . . . . . . . . . . . . . Total Part Build Rating . | . . . . . . . . . . . . . . . . . . . . . . . Parts Repaired . | . . . . . . . . . . . . . . . . . . . . . . . Time . | . . . . . . . . . . . . . . . . . . . . . . . Parts Recycled . | . . . . . . . . . . . . . . . . . . . . . . . Recycled Matter . | . . . . . . . . . . . . . . . . . . . . . . . Retrieved Matter . | . . . . . . . . . . . . . . . . . . . . . . . Retrieved Components . | . . . . . . . . . . . . . . . . . . . . . . . Parts Scanalyzed 1 | . . . . . 1 . . . . . . . . . . . . . . . . . Part Schematics Acquired 1 | . . . . . 1 . . . . . . . . . . . . . . . . . Parts Damaged . | . . . . . . . . . . . . . . . . . . . . . . . Bothacking | -11 -10 -10 -10 -9 -8 -8 -7 -7 -6 -6 -6 -6 -5 -5 -4 -4 -4 -4 -3 -3 -3 -3 ------------ Run | Scr Mat Min Exi Min Mat Gar Fac Gar Fac Gar Fac Gar Fac Gar Fac Gar Fac Gar Res Gar Res Qua Used RIF Installer 8 | . . . . . . 1 . 1 . 1 . 1 . 1 . 1 . 1 . 1 . . Hotswap 1 | . . . . . . . . . . . . . . . . . . 1 . . . . Signal Jammer 1 | . . . . . . . . . . . . . . . . . . . . 1 . . Zone Cloak 2 | . . . . . . . . 1 . 1 . . . . . . . . . . . . Alert ID Control 1 | . . . . . . . . . . . . 1 . . . . . . . . . . Structural Interface 1 | . . . . . . . . . . . . . . . . 1 . . . . . . Autoassimilate 1 | . . . . . . . . . . . . . . 1 . . . . . . . . Robots Hacked 178 | . . . . . . 1 10 8 4 17 7 17 5 17 6 29 . 19 21 11 5 1 Non-combat 18 | . . . . . . . 5 . 1 . 4 . 3 1 1 . . . . 1 2 . Combat 160 | . . . . . . 1 5 8 3 17 3 17 2 16 5 29 . 19 21 10 3 1 Autoassimilated 22 | . . . . . . . . . . . . . . 6 . 5 . . 8 2 . 1 Robot Hacks Applied 204 | . . . . . . 1 13 9 8 23 15 21 9 14 7 25 . 23 15 11 10 . parse_system 19 | . . . . . . . 6 1 . 2 . 3 1 . . 2 . . 1 1 2 . no_distress 1 | . . . . . . . . . . . . . 1 . . . . . . . . . start_evac 1 | . . . . . . . . . . . . . 1 . . . . . . . . . find_chute 1 | . . . . . . . 1 . . . . . . . . . . . . . . . drop_inventory 2 | . . . . . . . . . . . . . 1 . 1 . . . . . . . find_recycling 1 | . . . . . . . . . . . . . . . . . . . . . 1 . purge_threat 6 | . . . . . . . . . . . 1 . 2 . . . . . . . 3 . locate_traps 1 | . . . . . . . . . . . 1 . . . . . . . . . . . block_reporting 1 | . . . . . . . . . . . 1 . . . . . . . . . . . map_route 2 | . . . . . . . . . 1 . 1 . . . . . . . . . . . mark_security 1 | . . . . . . . . . 1 . . . . . . . . . . . . . relay_feed 1 | . . . . . . . . . 1 . . . . . . . . . . . . . redirect_shields 1 | . . . . . . . . . . . . . . . . . . . . . 1 . find_shortcuts 1 | . . . . . . . . . . . . . . 1 . . . . . . . . find_garrison 4 | . . . . . . . . . 1 . 1 . . . 1 . . . 1 . . . show_paths 1 | . . . . . . . . . . 1 . . . . . . . . . . . . focus_fire 2 | . . . . . . . . . . . 1 . . . . . . . 1 . . . reboot_propulsion 1 | . . . . . . . . . . . . . . 1 . . . . . . . . scatter_targeting 15 | . . . . . . . . . . 4 1 . . 1 . 3 . 3 2 . 1 . mark_system 1 | . . . . . . . . . . 1 . . . . . . . . . . . . link_complan 1 | . . . . . . . . . 1 . . . . . . . . . . . . . spike_heat 2 | . . . . . . . . . . . . . . 1 . . . . . 1 . . overload_power 4 | . . . . . . . . 1 . . 2 . . . . . . . 1 . . . amplify_resonance 2 | . . . . . . . . . . . 2 . . . . . . . . . . . disable_weapons 3 | . . . . . . . . . . 1 1 . . . . . . . 1 . . . reboot_system 1 | . . . . . . . . . . . . . . . . . . 1 . . . . overwrite_iff 51 | . . . . . . . 2 3 1 8 . 5 . 4 4 9 . 9 4 2 . . streamctrl_high 7 | . . . . . . . 4 1 . . . . . 1 . 1 . . . . . . formatsys_low 3 | . . . . . . . . . . . 1 . 1 . . . . . . . 1 . formatsys_high 67 | . . . . . . 1 . 3 2 6 2 13 2 5 1 10 . 10 4 7 1 . Relay Couplers Released 129 | . . . . . 3 17 . 7 . 20 3 17 3 15 . 18 . 7 3 16 . . Ejected 12 | . . . . . 3 . . . . . 3 . 3 . . . . . 3 . . . Machine Destruction 117 | . . . . . . 17 . 7 . 20 . 17 . 15 . 18 . 7 . 16 . . Attached 77 | . . . . . . 1 3 3 2 8 4 13 3 12 . 9 . 6 3 9 1 . Fabnet Peak Effective % . | . . . . . . . . . . . . . . . . . . . . . . . Robots Rewired 1 | . . . . . . . . . . . . . . . . . . . . 1 . . Allies Hacked 7 | . . . . . . . . . . . . . 4 . . . . . . . 3 . Hacks Repelled . | . . . . . . . . . . . . . . . . . . . . . . . Allies | -11 -10 -10 -10 -9 -8 -8 -7 -7 -6 -6 -6 -6 -5 -5 -4 -4 -4 -4 -3 -3 -3 -3 -------- Run | Scr Mat Min Exi Min Mat Gar Fac Gar Fac Gar Fac Gar Fac Gar Fac Gar Fac Gar Res Gar Res Qua Total Allies 149 | . 1 . . . 1 1 5 7 3 14 3 17 3 16 5 25 . 17 16 11 3 1 Largest Group 20 | . 1 . . . 1 1 1 4 2 5 6 11 10 7 7 14 12 20 20 10 11 3 Highest-Rated Group 886 | . 10 . . . 10 15 40 96 53 172 201 367 336 261 310 436 412 886 886 607 617 120 Highest-Rated Ally 137 | . 10 . . . 10 15 40 32 41 41 41 85 85 66 58 58 49 58 137 137 137 64 Total Orders 160 | . . . . . 1 2 3 6 . 14 8 28 10 11 5 16 . 22 5 18 11 . STAY 89 | . . . . . 1 1 2 3 . 8 4 16 5 7 3 10 . 11 2 10 6 . FOLLOW 71 | . . . . . . 1 1 3 . 6 4 12 5 4 2 6 . 11 3 8 5 . Ally Attacks 890 | . . . . . . 2 37 20 6 67 25 95 34 37 46 31 . 79 279 74 57 1 Total Damage 25306 | . . . . . . 56 581 378 137 1505 811 3227 1039 568 1472 484 . 1834 8324 2546 2292 52 Kills 154 | . . . . . . . 4 2 2 11 7 26 4 5 10 7 . 9 44 13 10 . Allies Corrupted 4 | . . . . . . . 1 . . . . . 1 . . . . . 1 . 1 . Allies Melted 2 | . . . . . . . . 1 . . . . . . . 1 . . . . . . Intel | -11 -10 -10 -10 -9 -8 -8 -7 -7 -6 -6 -6 -6 -5 -5 -4 -4 -4 -4 -3 -3 -3 -3 ------- Run | Scr Mat Min Exi Min Mat Gar Fac Gar Fac Gar Fac Gar Fac Gar Fac Gar Fac Gar Res Gar Res Qua Robot Analysis Total 4 | . 4 . . . . . . . . . . . . . . . . . . . . . Derelict Logs Recovered 3 | . . 2 . 1 . . . . . . . . . . . . . . . . . . Drone Launches . | . . . . . . . . . . . . . . . . . . . . . . . Drone Recoveries . | . . . . . . . . . . . . . . . . . . . . . . . Exploration | -11 -10 -10 -10 -9 -8 -8 -7 -7 -6 -6 -6 -6 -5 -5 -4 -4 -4 -4 -3 -3 -3 -3 ------------- Run | Scr Mat Min Exi Min Mat Gar Fac Gar Fac Gar Fac Gar Fac Gar Fac Gar Fac Gar Res Gar Res Qua Turns Passed 33016 | 75 788 833 708 195 848 2194 1501 1011 451 2018 362 2629 893 3261 661 3882 36 2899 749 5353 1502 167 Spaces Moved 15649 | 43 335 456 318 118 321 943 683 441 266 920 177 1436 467 1603 334 1934 20 1581 389 2043 710 111 Core 317 | 2 . . . . . . . . . . . . . . . . . . . 287 . 28 Treads 1484 | 41 335 456 318 . . . . . . . . . . . . . . . . 334 . . Legs . | . . . . . . . . . . . . . . . . . . . . . . . Wheels 13848 | . . . . 118 321 943 683 441 266 920 177 1436 467 1603 334 1934 20 1581 389 1422 710 83 Hover . | . . . . . . . . . . . . . . . . . . . . . . . Flight . | . . . . . . . . . . . . . . . . . . . . . . . Fastest Speed 50 | 50 160 160 160 130 150 140 160 145 145 145 160 145 145 145 160 160 160 160 145 50 135 50 Average Speed 167 | 154 160 160 221 140 197 178 180 147 145 154 160 147 153 159 160 160 160 160 167 205 164 146 Slowest Speed 1400 | 160 160 160 240 145 205 235 190 160 145 160 160 160 160 160 160 160 160 160 175 1400 255 180 Overloaded Moves . | . . . . . . . . . . . . . . . . . . . . . . . Propulsion Burnouts . | . . . . . . . . . . . . . . . . . . . . . . . Robots Hopped . | . . . . . . . . . . . . . . . . . . . . . . . Cave-ins Triggered . | . . . . . . . . . . . . . . . . . . . . . . . Exploration Rate (%) 45 | 5 50 84 69 38 29 71 16 47 9 81 5 78 12 99 10 99 1 86 18 96 22 15 Regions Visited 22 Branch Regions 4 Pre-discovered Areas 2 | . . 1 1 . . . . . . . . . . . . . . . . . . . Known Exits Taken 9 | . . . . 1 1 . 1 . 1 . 1 . 1 . 1 . 1 . 1 . . . Unknown Exits Taken 5 | 1 1 1 1 . . . . . . . . . . . . . . . . . 1 . Scrap Searched 5 | . . 3 . 2 . . . . . . . . . . . . . . . . . . Spaces Dug . | . . . . . . . . . . . . . . . . . . . . . . . Terrain Destroyed 139 | . . . . . 32 10 4 . . . . 4 2 78 . 2 . . . 4 3 . Melee . | . . . . . . . . . . . . . . . . . . . . . . . Projectile 41 | . . . . . 20 10 4 . . . . 4 2 . . . . . . 1 . . AOE 85 | . . . . . 12 . . . . . . . . 73 . . . . . . . . Terrain Rammed . | . . . . . . . . . . . . . . . . . . . . . . . Walls Destroyed . | . . . . . . . . . . . . . . . . . . . . . . . Machines Disabled . | . . . . . . . . . . . . . . . . . . . . . . . Actions | -11 -10 -10 -10 -9 -8 -8 -7 -7 -6 -6 -6 -6 -5 -5 -4 -4 -4 -4 -3 -3 -3 -3 --------- Run | Scr Mat Min Exi Min Mat Gar Fac Gar Fac Gar Fac Gar Fac Gar Fac Gar Fac Gar Res Gar Res Qua Total 21329 | 49 543 504 326 134 520 1348 929 761 321 1442 237 1892 608 2158 412 2611 24 1905 462 3100 929 114 Wait 3558 | . 173 3 . . 160 188 147 207 31 324 18 269 98 326 39 456 4 219 17 768 111 . Move 15624 | 42 334 455 317 117 321 941 683 439 266 918 176 1434 466 1601 334 1932 20 1579 388 2041 709 111 Hop . | . . . . . . . . . . . . . . . . . . . . . . . Pick Up 169 | 1 5 12 1 1 7 18 4 10 1 15 3 15 4 11 1 16 . 8 4 18 14 . Fast Attach 113 | 6 4 1 . 1 5 2 5 3 2 6 2 5 7 3 3 5 . 2 10 23 17 1 Attach 91 | . 1 2 . 4 2 5 5 7 3 10 4 12 3 9 . 8 . 4 3 5 4 . Detach 19 | . . . 1 1 1 1 . 2 . 1 . 2 1 1 . 2 . . . . 5 1 Swap 49 | . . . 2 3 . 5 3 1 . . 3 5 1 12 1 4 . 3 3 2 1 . Drop 93 | . 2 . 5 . 4 10 11 4 2 3 2 9 4 5 3 11 . 3 4 6 5 . Fire 867 | . 24 30 . 7 20 95 18 22 16 61 21 59 24 83 31 104 . 62 32 99 58 1 Melee 46 | . . . . . . 3 18 18 . . . . . . . . . . . 3 4 . Ram 6 | . . . . . . . 1 . . . . . . . . . . . 1 4 . . Kick . | . . . . . . . . . . . . . . . . . . . . . . . Crush 1 | . . 1 . . . . . . . . . . . . . . . . . . . . Escape Stasis 561 | . . . . . . 72 . 48 . 104 . 56 . 54 . 72 . 24 . 131 . . Rewire 7 | . . . . . . 1 . . . . 1 2 . . . 1 . 1 . . 1 . Trap 125 | . . . . . . 7 34 . . . 7 24 . 53 . . . . . . . . Miscellaneous . | . . . . . . . . . . . . . . . . . . . . . . . Route ------- -11/Scrapyard -10/Materials (discovered 3 exits: [*Mat] / *Min x2) -10/Mines (discovered 3 exits: [*Mat x2] / *Exi) -10/Exiles -9/Mines -8/Materials (discovered 3 exits: Fac / [*Sto] / Gar) -8/Garrison (discovered 3 exits: *Fac x3) -7/Factory -7/Garrison -6/Factory -6/Garrison (discovered 2 exits: *Fac x2) -6/Factory (discovered 2 exits: Fac / Gar) -6/Garrison (discovered 3 exits: *Fac x3) -5/Factory -5/Garrison (discovered 3 exits: *Fac x3) -4/Factory -4/Garrison (discovered 3 exits: *Fac x3) -4/Factory -4/Garrison (discovered 3 exits: *Res x3) -3/Research -3/Garrison (discovered 3 exits: *Res x3) -3/Research -3/Quarantine History --------- Turn | Location | Event 46 | -11/Scrapyard | Discovered new exit (range 16) 76 | -11/Scrapyard | Entered Materials 100 | -10/Materials | Discovered new exit (range 4) 241 | -10/Materials | Discovered new exit (range 9) 317 | -10/Materials | Build established: Mutant 760 | -10/Materials | Discovered new exit (range 16) 864 | -10/Materials | Entered Mines 884 | -10/Mines | Met a Derelict bent on vengeance 902 | -10/Mines | Learned Materials trap positions 967 | -10/Mines | Core integrity fell below 50% 1196 | -10/Mines | Discovered new exit (range 11) 1234 | -10/Mines | Discovered new exit (range 9) 1259 | -10/Mines | Learned location of Storage (-8) 1342 | -10/Mines | Learned 2 Materials zone layouts 1360 | -10/Mines | Met a Derelict who couldn't figure out how to use a Trap Extractor 1361 | -10/Mines | Core integrity fell below 20% 1561 | -10/Mines | A weapon hastily lodged in a ceiling crevice suddenly fell to the ground 1649 | -10/Mines | Found a damaged Exp. Sensor Array with a note attached 1652 | -10/Mines | Found Prototype Device 1689 | -10/Mines | Deemed a non-threat by the Exiles lab entrance 1690 | -10/Mines | Discovered new exit (range 5) 1697 | -10/Mines | Entered Exiles 1737 | -10/Exiles | Met 8R-AWN 1761 | -10/Exiles | Met EX-HEX 1838 | -10/Exiles | Identified Exp. Sensor Array 1863 | -10/Exiles | Met EX-DEC 1902 | -10/Exiles | Learned location of Zion (-6) 2058 | -10/Exiles | Met EX-BIN 2092 | -10/Exiles | Aligned with FarCom system 2094 | -10/Exiles | Given EX-Vault access code 2149 | -10/Exiles | Opened EX-Vault 2173 | -10/Exiles | Found AWS/Autocannon 2222 | -10/Exiles | Warned to stay clear of 0b10 Research branches 2376 | -10/Exiles | Discovered new exit (range 14) 2405 | -10/Exiles | Left Exiles lab with AWS/Autocannon 2405 | -10/Exiles | Entered Mines 2464 | -9/Mines | Identified exit to Materials 2595 | -9/Mines | System corruption reached 10% 2600 | -9/Mines | Entered Materials 2600 | -8/Materials | Evolved 4 slots: Utility x2, Weapon x2 2601 | -8/Materials | Identified exit to Factory 2602 | -8/Materials | Loaded intel: 20 trap records 2676 | -8/Materials | Discovered new exit (range 13) 2894 | -8/Materials | Build established: Skirmisher 3448 | -8/Materials | Identified exit to Garrison 3448 | -8/Materials | Entered Garrison 3467 | -8/Garrison | Triggered checkpoint 3514 | -8/Garrison | Garrison Relay disabled 3626 | -8/Garrison | Triggered checkpoint 3812 | -8/Garrison | Discovered exit to Factory (range 12) 3827 | -8/Garrison | Build established: Tank 3878 | -8/Garrison | Triggered checkpoint 3980 | -8/Garrison | Triggered checkpoint 3984 | -8/Garrison | Destroyed 7 combat bots 4071 | -8/Garrison | Discovered exit to Factory (range 12) 4322 | -8/Garrison | Triggered checkpoint 4374 | -8/Garrison | Discovered exit to Factory (range 15) 4418 | -8/Garrison | Installed Relay Interface Framework 4573 | -8/Garrison | Triggered checkpoint 4598 | -8/Garrison | Garrison Relay disabled 4720 | -8/Garrison | Build established: Bothacker-Tank 5080 | -8/Garrison | Triggered checkpoint 5120 | -8/Garrison | Garrison Relay disabled 5141 | -8/Garrison | Build established: Bothacker-Skirmisher 5390 | -8/Garrison | Triggered checkpoint 5413 | -8/Garrison | Garrison Relay disabled 5642 | -8/Garrison | Entered Factory 5642 | -7/Factory | Accompanied by 1 ally 5642 | -7/Factory | Evolved 2 slots: Utility x2 6104 | -7/Factory | Build established: Bothacker-Tank 6842 | -7/Factory | First assault squad dispatched 7143 | -7/Factory | Identified exit to Garrison 7143 | -7/Factory | Entered Garrison 7151 | -7/Garrison | Expanded RIF knowledge: Zone Cloak 7258 | -7/Garrison | Triggered checkpoint 7311 | -7/Garrison | Build established: Bothacker-Mutant 7542 | -7/Garrison | Garrison Relay disabled 7716 | -7/Garrison | Triggered checkpoint 7936 | -7/Garrison | Discovered new exit (range 15) 7986 | -7/Garrison | Triggered checkpoint 8025 | -7/Garrison | Garrison Relay disabled 8154 | -7/Garrison | Entered Factory 8154 | -6/Factory | Evolved 2 slots: Utility x2 8605 | -6/Factory | Identified exit to Garrison 8605 | -6/Factory | Entered Garrison 8671 | -6/Garrison | Triggered checkpoint 8688 | -6/Garrison | Garrison Relay disabled 8832 | -6/Garrison | Triggered checkpoint 8835 | -6/Garrison | Triggered checkpoint 8847 | -6/Garrison | Triggered checkpoint 9510 | -6/Garrison | Triggered checkpoint 9615 | -6/Garrison | Discovered new exit (range 10) 9637 | -6/Garrison | Expanded RIF knowledge: Zone Cloak 9695 | -6/Garrison | Garrison Relay disabled 9750 | -6/Garrison | Build established: Bothacker-Skirmisher 9890 | -6/Garrison | Discovered new exit (range 15) 10086 | -6/Garrison | Triggered checkpoint 10189 | -6/Garrison | Garrison Relay disabled 10362 | -6/Garrison | Triggered checkpoint 10375 | -6/Garrison | Build established: Bothacker-Mutant 10439 | -6/Garrison | Garrison Relay disabled 10623 | -6/Garrison | Entered Factory 10623 | -6/Factory | Accompanied by 4 allies 10679 | -6/Factory | Build established: Bothacker-Skirmisher 10744 | -6/Factory | Discovered new exit (range 29) 10890 | -6/Factory | Garrison activated, responded to threat 10965 | -6/Factory | Identified exit to Garrison 10985 | -6/Factory | Entered Garrison 10985 | -6/Garrison | Accompanied by 5 allies 10991 | -6/Garrison | Build established: Bothacker-Mutant 11078 | -6/Garrison | Triggered checkpoint 11206 | -6/Garrison | Garrison Relay disabled 11548 | -6/Garrison | Spotted B-75 Beast 11558 | -6/Garrison | Triggered checkpoint 11614 | -6/Garrison | Assimilated Beast 5a with formatsys_high 11834 | -6/Garrison | Discovered new exit (range 12) 11861 | -6/Garrison | Expanded RIF knowledge: Alert ID Control 11912 | -6/Garrison | Triggered checkpoint 12055 | -6/Garrison | Garrison Relay disabled 12168 | -6/Garrison | Triggered checkpoint 12215 | -6/Garrison | Discovered new exit (range 14) 12303 | -6/Garrison | Build established: Botlord-Mutant 12680 | -6/Garrison | Garrison Relay disabled 12850 | -6/Garrison | Triggered checkpoint 12895 | -6/Garrison | Discovered new exit (range 14) 13016 | -6/Garrison | Triggered checkpoint 13160 | -6/Garrison | Triggered checkpoint 13322 | -6/Garrison | Triggered checkpoint 13344 | -6/Garrison | Triggered checkpoint 13362 | -6/Garrison | Triggered checkpoint 13614 | -6/Garrison | Entered Factory 13614 | -5/Factory | Accompanied by 8 allies 13614 | -5/Factory | Evolved 2 slots: Utility x2 14173 | -5/Factory | Build established: Botlord-Skirmisher 14500 | -5/Factory | Identified exit to Garrison 14507 | -5/Factory | Entered Garrison 14515 | -5/Garrison | Expanded RIF knowledge: Autoassimilate 14586 | -5/Garrison | Triggered checkpoint 14600 | -5/Garrison | Garrison Relay disabled 14868 | -5/Garrison | Triggered checkpoint 14908 | -5/Garrison | Triggered checkpoint 15157 | -5/Garrison | Spotted B-75 Beast 15169 | -5/Garrison | Triggered checkpoint 15171 | -5/Garrison | Triggered checkpoint 15513 | -5/Garrison | Build established: Botlord-Mutant 15551 | -5/Garrison | Discovered new exit (range 11) 15602 | -5/Garrison | Triggered checkpoint 15774 | -5/Garrison | Garrison Relay disabled 15902 | -5/Garrison | Phase Generator disabled 16009 | -5/Garrison | Build established: Botlord-Skirmisher 16423 | -5/Garrison | Discovered new exit (range 10) 16534 | -5/Garrison | Triggered checkpoint 16559 | -5/Garrison | Garrison Relay disabled 16953 | -5/Garrison | Discovered new exit (range 8) 17010 | -5/Garrison | Triggered checkpoint 17010 | -5/Garrison | Garrison Relay disabled 17768 | -5/Garrison | Entered Factory 17768 | -4/Factory | Accompanied by 6 allies 17768 | -4/Factory | Evolved 2 slots: Utility x2 18235 | -4/Factory | P-70 Sage assimilated allied Sentinel 6f 18243 | -4/Factory | P-70 Sage assimilated allied Sentinel 6d 18408 | -4/Factory | Build established: Botlord-Mutant 18429 | -4/Factory | Identified exit to Garrison 18429 | -4/Factory | Entered Garrison 18429 | -4/Garrison | Accompanied by 1 ally 18470 | -4/Garrison | Triggered checkpoint 18547 | -4/Garrison | Garrison Relay disabled 18640 | -4/Garrison | Triggered checkpoint 19005 | -4/Garrison | Triggered checkpoint 19345 | -4/Garrison | Build established: Botlord-Skirmisher 19365 | -4/Garrison | Discovered new exit (range 8) 19644 | -4/Garrison | Discovered new exit (range 10) 19990 | -4/Garrison | Triggered checkpoint 20113 | -4/Garrison | Build established: Botlord-Mutant 20303 | -4/Garrison | Discovered new exit (range 10) 20327 | -4/Garrison | Expanded RIF knowledge: Structural Interface 20385 | -4/Garrison | Garrison Relay disabled 20409 | -4/Garrison | Triggered checkpoint 20626 | -4/Garrison | Triggered checkpoint 20784 | -4/Garrison | Triggered checkpoint 21008 | -4/Garrison | Garrison Relay disabled 21320 | -4/Garrison | Triggered checkpoint 21492 | -4/Garrison | Garrison Relay disabled 21883 | -4/Garrison | Build established: Botlord-Tank 22311 | -4/Garrison | Entered Factory 22311 | -4/Factory | Accompanied by 12 allies 22343 | -4/Factory | Identified exit to Garrison 22347 | -4/Factory | Entered Garrison 22347 | -4/Garrison | Accompanied by 12 allies 22464 | -4/Garrison | Triggered checkpoint 22693 | -4/Garrison | Build established: Botlord-Mutant 22810 | -4/Garrison | Garrison Relay disabled 23182 | -4/Garrison | Discovered new exit (range 13) 23456 | -4/Garrison | Triggered checkpoint 23709 | -4/Garrison | Triggered checkpoint 23729 | -4/Garrison | Triggered checkpoint 23785 | -4/Garrison | Discovered new exit (range 12) 24078 | -4/Garrison | Discovered new exit (range 8) 24097 | -4/Garrison | Expanded RIF knowledge: Hotswap 24211 | -4/Garrison | Triggered checkpoint 24333 | -4/Garrison | Garrison Relay disabled 25246 | -4/Garrison | Entered Research 25246 | -3/Research | Accompanied by 18 allies 25246 | -3/Research | Evolved 2 slots: Power x1, Utility x1 25528 | -3/Research | Spotted B-86 Titan 25538 | -3/Research | Allies destroyed B-86 Titan 25707 | -3/Research | Spotted B-86 Titan 25712 | -3/Research | Assimilated Titan 8a with formatsys_high 25741 | -3/Research | Lost 3 parts (1n2w) 25769 | -3/Research | P-80 Master assimilated allied Sentinel 7d 25792 | -3/Research | Lost 3 parts (1p1u1w) 25962 | -3/Research | Identified exit to Garrison 25995 | -3/Research | Entered Garrison 25995 | -3/Garrison | Accompanied by 4 allies 26054 | -3/Garrison | Triggered checkpoint 26292 | -3/Garrison | Garrison Relay disabled 26510 | -3/Garrison | Found Antimissile System 26609 | -3/Garrison | Triggered checkpoint 26686 | -3/Garrison | Spotted B-86 Titan 26687 | -3/Garrison | Autoassimilated Titan 8b with RIF 26832 | -3/Garrison | Triggered checkpoint 27350 | -3/Garrison | Triggered checkpoint 27596 | -3/Garrison | Triggered checkpoint 27668 | -3/Garrison | Discovered new exit (range 11) 27694 | -3/Garrison | Expanded RIF knowledge: Signal Jamming 27806 | -3/Garrison | Garrison Relay disabled 27943 | -3/Garrison | Discovered new exit (range 5) 28008 | -3/Garrison | Triggered checkpoint 28420 | -3/Garrison | Garrison Relay disabled 28616 | -3/Garrison | Triggered checkpoint 28679 | -3/Garrison | Released all parts (10) 28692 | -3/Garrison | Core integrity fell below 50% 28710 | -3/Garrison | Lost 20 parts (1p2n13u4w) 28988 | -3/Garrison | Build established: Commander-Mutant 30435 | -3/Garrison | Build established: Botlord-Mutant 30736 | -3/Garrison | Build established: Botlord-Tank 30789 | -3/Garrison | Garrison Relay disabled 31137 | -3/Garrison | Discovered new exit (range 15) 31348 | -3/Garrison | Entered Research 31348 | -3/Research | Accompanied by 10 allies 31435 | -3/Research | Build established: Botlord-Mutant 31803 | -3/Research | P-80 Master assimilated allied Archangel 8a 32371 | -3/Research | Build established: Botlord-Tank 32373 | -3/Research | Found Prototype Processor 32373 | -3/Research | Identified Exp. Melee Analysis Suite 32508 | -3/Research | Found Prototype Processor 32508 | -3/Research | Identified Exp. Targeting Computer 32661 | -3/Research | Found Prototype Device 32661 | -3/Research | Identified Exp. Focal Shield 32725 | -3/Research | Spotted B-90 Cyclops 32741 | -3/Research | Discovered new exit (range 16) 32766 | -3/Research | Core integrity fell below 20% 32775 | -3/Research | Allies destroyed B-90 Cyclops 32800 | -3/Research | Lost 12 parts (2p2n4u4w) 32804 | -3/Research | Found Quantum Capacitor 32850 | -3/Research | Entered Quarantine 32850 | -3/Quarantine | Accompanied by 2 allies 32851 | -3/Quarantine | Maximum security lockdown engaged 32866 | -3/Quarantine | Found Alien Artifact 32866 | -3/Quarantine | Identified Phase Redirector 33003 | -3/Quarantine | Released all parts (16) 33017 | -3/Quarantine | Destroyed by P-80 Master with Gamma Rifle Last Messages --------------- 33001_ C-30 ARC bursts open, deploying its payload. 33001_ G-73 Enforcer unfolds itself. 33001_ L-61 Swordsman unfolds itself. 33003_ Released Phase Redirector. 33003_ Released Imp. Weapon Shielding. 33003_ Released Rnf. Antimatter Reactor. 33003_ Released Adv. Salvage Targeting Computer. 33003_ Released Relay Coupler [Sentry]. 33003_ Released Relay Coupler [Grunt]. 33003_ Released Relay Coupler [Demolisher]. 33003_ Released Relay Coupler [Brawler]. 33003_ Released Huge Storage Unit. 33003_ Released Relay Coupler [Hunter]. 33003_ Released Arm. Wheel. 33003_ Released Com. HERF Cannon. 33003_ Released Arm. Wheel. 33003_ Released Imp. Heavy Armor Plating. 33003_ Released Imp. Dynamic Insulation System. 33003_ Released Med. Reflective Plating. 33004_ Warden 8g destroyed. Map ----- +----------------------------------------------------+ | | | | | | | | | | | | | | | | | | | | | | | | | | | | | ?????????????????????????????????????????????????? | | ?????????????????????????????????????????????????? | | ?????????????????????????????????????????????????? | | ?????##################??????????????????????????? | | ?????# gg ggpgl #??????????????????????????? | | ?????# g########### #??????????????????????????? | | ?????# !l#?????????# #??????????????????????????? | | ?????# =li#?????????# #?#####????????????????????? | | ?????#![[l#?###?????# #?#ppp#????????????????????? | | ?????#![bg#?# !??## ### #????????????????????? | | ?????#|*![#?# # ## # #???g??????????????? | | ?????#||!l#?# """ + @ #???g??????????????? | | ?????#!!!/#?# """ # ### ####???g??????????????? | | ?????#![]=#?# """??#####?? #?????????????????????? | | ?????#=*! #?# ????????????#?????????????????????? | | ######=%[b#?#????????????????????????????????????? | | [*%[i#????##########????????????????????????? | | #####/## #????# #????????????????????????? | | #?? %= # #????# #????????????????????????? | | #""" +%#????# #????????????????????????? | | #""" #%###### "" #????????????????????????? | | #""" #"# # """ #????????????????????????? | | # #"# # " #????????????????????????? | | # #%# # """ #????????????????????????? | | ########"# + "" #????????????????????????? | | # # #????????????????????????? | | ########+# ##########????????????????????????? | | #?? ?# #? ?????????????????????????? | | #??"""""?# #? """ ?????????????????????????? | | #? """"" # #] """ ?????????????????????????? | | #^ """"" # # """ #????????????????????????? | | # ^ + + #????????????????????????? | | # # # """ #????????????????????????? | | # ""T"" # # """ ?????????????????????????? | | #^ """""?# #? """ ?????????????????????????? | | #?? ?# #? ?????????????????????????? | +----------------------------------------------------+ Best States ------------- Heat Dissipation 94 Energy Generation 39 Energy Capacity 410 Matter Stores 300 Matter Capacity 300 Sight Range 16 Robot Scan Range 20 Terrain Scan Density 10 Cloak Strength 3 Additional Mass Support 20 EM Shielding 3 Armor Coverage 825 Resistance: TH 15 Weapon Shielding 66 Point Defense Rating 240 Phase Shifting 10 Evasion (%) 50 Targeting Accuracy 12 Recoil Reduction 8 Salvage Targeting 9 Relay Coupler Types 11 Relay Coupler Value 221 Trap Extractor Capacity 6 Item Schematics ----------------- Huge Storage Unit | -8/Materials | Scanalyzed Robot Schematics ------------------ None Fabricated ------------ Nothing Alien Tech Used ----------------- Phase Redirector Achievements -------------- None Challenges ------------ None Game ------ Seed FluxZioniteLance Manual? 0 Play Time 02:53:02 Cumulative 248.6 hours Start 2022.07.13 @ 15:19:37 End 2022.07.15 @ 16:58:52 Sessions 7 Manual Loads 0 Difficulty Rogue Special Mode None Game No. 353 Rogue 331 Adventurer 4 Explorer 18 Win Type - Total 10 Types 8/0/0/2/0/0/0/0/0 Lore% 70 Gallery% 88 Achievement% 72 Wizard Run 0 Options --------- ASCII 0 Keyboard 1 Movement Numpad Keybinds 0 Fullscreen 1 Font 18/SmallcapsGlow Map View 76x50 Tactical HUD 1 Map Filters NONE Filters NONE Steam 1 RUN: 4b8b1ed3-1290-4646-be0a-ca93a415bb96